fUSD/lending_fUSD_20250511
["ID","MTS","AMOUNT","RATE_DAILY","PERIOD"]
[360702805,1746940650305,-422.25552968,0.00018111,2]
[360702806,1746940660566,151.97,0.00013699,2]
[360702807,1746940674931,-77.74447032,0.00018111,2]
[360702808,1746940674961,-500.0,0.00018111,2]
[360702809,1746940674995,-500.0,0.00018111,2]
[360702810,1746940675027,-500.0,0.00018111,2]
[360702811,1746940675058,-500.0,0.00018111,2]
[360702812,1746940675088,-500.0,0.00018111,2]
[360702813,1746940675118,-500.0,0.00018111,2]
[360702814,1746940675147,-500.0,0.00018111,2]
[360702815,1746940675177,-500.0,0.00018111,2]
[360702816,1746940675207,-500.0,0.00018111,2]
[360702817,1746940675238,-500.0,0.00018111,2]
[360702818,1746940675270,-422.25552968,0.00018111,2]
[360702819,1746940793764,181.6477,0.00017004,2]
[360702821,1746940877581,27691.0,0.00029,120]
[360702822,1746940893513,-200.0,0.00018112,2]
[360702823,1746940893536,-250.0,0.00018169,2]
[360702824,1746940893559,-2000.0,0.000182,2]
[360702825,1746940893583,-200.0,0.00018288,2]
[360702826,1746940893606,-200.0,0.00018293,2]
[360702827,1746940893629,-415.45,0.00018407,2]
[360702828,1746940893654,-200.0,0.00018476,2]
[360702829,1746940893676,-996.99,0.00018608,2]
[360702830,1746940893701,-200.0,0.00018639,2]
[360702831,1746940893727,-200.0,0.00018661,2]
[360702832,1746940893751,-200.0,0.00018847,2]
[360702833,1746940893778,-649.185,0.00018933,2]
[360702834,1746940893801,-2619.8046,0.00019078,2]
[360702835,1746940893824,-207.4,0.00019166,2]
[360702836,1746940893847,-1200.0,0.00019176,2]
[360702837,1746940893879,-500.0,0.00019176,2]
[360702838,1746940893910,-500.0,0.00019176,2]
[360702839,1746940893939,-500.0,0.00019176,2]
[360702840,1746940893971,-500.0,0.00019176,2]
[360702841,1746940893999,-477.74447032,0.00019176,2]
[360702842,1746940894027,-500.0,0.00019176,2]
[360702843,1746940894057,-500.0,0.00019176,2]
[360702844,1746940894091,-500.0,0.00019176,2]
[360702845,1746940894124,-500.0,0.00019176,2]
[360702846,1746940894152,-500.0,0.00019176,2]
[360702847,1746940894177,-7809.47087153,0.00019177,2]
[360702848,1746940894199,-450.0,0.00019178,2]
[360702849,1746940894222,-400.0,0.00019178,2]
[360702850,1746940894245,-400.0,0.00019178,2]
[360702851,1746940894270,-400.0,0.00019178,2]
[360702852,1746940894293,-400.0,0.00019178,2]
[360702853,1746940894314,-401.5804551,0.00019178,2]
[360702854,1746940894336,-400.0,0.00019178,2]
[360702855,1746940894356,-400.0,0.00019178,2]
[360702856,1746940894378,-400.0,0.00019178,2]
[360702857,1746940894398,-400.0,0.00019178,2]
[360702858,1746940894420,-400.0,0.00019178,2]
[360702859,1746940894441,-500.0,0.00019178,2]
[360702860,1746940894687,-400.0,0.00019178,2]
[360702861,1746940894710,-400.0,0.00019178,2]
[360702862,1746940894734,-400.0,0.00019178,2]
[360702863,1746940894756,-400.0,0.00019178,2]
[360702864,1746940894778,-400.0,0.00019178,2]
[360702865,1746940894799,-400.0,0.00019178,2]
[360702866,1746940894821,-400.0,0.00019178,2]
[360702867,1746940894843,-400.0,0.00019178,2]
[360702868,1746940894865,-400.0,0.00019178,2]
[360702869,1746940894887,-400.0,0.00019178,2]
[360702870,1746940894909,-400.0,0.00019178,2]
[360702871,1746940894931,-400.0,0.00019178,2]
[360702872,1746940894953,-400.0,0.00019178,2]
[360702873,1746940894976,-400.0,0.00019178,2]
[360702874,1746940894998,-400.0,0.00019178,2]
[360702875,1746940895021,-400.0,0.00019178,2]
[360702876,1746940895043,-400.0,0.00019178,2]
[360702877,1746940895064,-400.0,0.00019178,2]
[360702878,1746940895088,-400.0,0.00019178,2]
[360702879,1746940895110,-400.0,0.00019178,2]
[360702880,1746940895133,-400.0,0.00019178,2]
[360702881,1746940895156,-400.0,0.00019178,2]
[360702882,1746940895177,-202.32961931,0.00019178,2]
[360702883,1746940895197,-400.0,0.00019178,2]
[360702884,1746940895220,-400.0,0.00019178,2]
[360702885,1746940895240,-400.0,0.00019178,2]
[360702886,1746940895262,-400.0,0.00019178,2]
[360702887,1746940895282,-400.0,0.00019178,2]
[360702888,1746940895302,-400.0,0.00019178,2]
[360702889,1746940895324,-400.0,0.00019178,2]
[360702890,1746940895345,-400.0,0.00019178,2]
[360702891,1746940895367,-400.0,0.00019178,2]
[360702892,1746940895387,-400.0,0.00019178,2]
[360702893,1746940895411,-400.0,0.00019178,2]
[360702894,1746940895434,-500.0,0.00019178,2]
[360702895,1746940895456,-212.22274282,0.00019178,2]
[360702896,1746940895478,-199.92186942,0.00019178,2]
[360702897,1746940895499,-217.00533126,0.00019178,2]
[360702898,1746940895522,-400.0,0.00019178,2]
[360702899,1746940895545,-500.0,0.00019178,2]
[360702900,1746940895583,-170.40746516,0.00019178,2]
[360702901,1746940895604,-400.0,0.00019178,2]
[360702902,1746940895627,-250.0,0.00019178,2]
[360702903,1746940895650,-531.7,0.00019178,2]
[360702904,1746940895672,-400.0,0.00019178,2]
[360702905,1746940895696,-400.0,0.00019178,2]
[360702906,1746940895720,-450.0,0.00019178,2]
[360702907,1746940895742,-400.0,0.00019178,2]
[360702908,1746940895765,-400.0,0.00019178,2]
[360702909,1746940895790,-400.0,0.00019178,2]
[360702910,1746940895813,-400.0,0.00019178,2]
[360702911,1746940895836,-400.0,0.00019178,2]
[360702912,1746940895859,-400.0,0.00019178,2]
[360702913,1746940895882,-400.0,0.00019178,2]
[360702914,1746940895904,-400.0,0.00019178,2]
[360702915,1746940895926,-400.0,0.00019178,2]
[360702916,1746940895948,-400.0,0.00019178,2]
[360702917,1746940895971,-400.0,0.00019178,2]
[360702918,1746940895995,-406.24,0.00019178,2]
[360702919,1746940896020,-407.49,0.00019178,2]
[360702920,1746940896042,-400.0,0.00019178,2]
[360702921,1746940896065,-400.0,0.00019178,2]
[360702922,1746940896093,-1224.69,0.00019178,2]
[360702923,1746940896116,-400.0,0.00019178,2]
[360702924,1746940896140,-400.0,0.00019178,2]
[360702925,1746940896163,-400.0,0.00019178,2]
[360702926,1746940896185,-400.0,0.00019178,2]
[360702927,1746940896210,-400.0,0.00019178,2]
[360702928,1746940896232,-1003.14,0.00019178,2]
[360702929,1746940896264,-400.0,0.00019178,2]
[360702930,1746940896286,-400.0,0.00019178,2]
[360702931,1746940896309,-576.27,0.00019178,2]
[360702932,1746940896331,-400.0,0.00019178,2]
[360702933,1746940896352,-400.0,0.00019178,2]
[360702934,1746940896374,-505.91559147,0.00019178,2]
[360702935,1746940896397,-426.3,0.00019178,2]
[360702936,1746940896421,-667.34,0.00019178,2]
[360702937,1746940896443,-400.0,0.00019178,2]
[360702938,1746940896467,-400.0,0.00019178,2]
[360702939,1746940896491,-400.0,0.00019178,2]
[360702940,1746940896516,-400.0,0.00019178,2]
[360702941,1746940896540,-400.0,0.00019178,2]
[360702942,1746940896562,-459.34,0.00019178,2]
[360702943,1746940896586,-400.0,0.00019178,2]
[360702944,1746940896610,-400.0,0.00019178,2]
[360702945,1746940896635,-400.0,0.00019178,2]
[360702946,1746940896658,-400.0,0.00019178,2]
[360702947,1746940896680,-6983.39,0.00019178,2]
[360702948,1746940896702,-400.0,0.00019178,2]
[360702949,1746940896726,-400.0,0.00019178,2]
[360702950,1746940896749,-400.0,0.00019178,2]
[360702951,1746940896772,-400.0,0.00019178,2]
[360702952,1746940896797,-400.0,0.00019178,2]
[360702953,1746940896821,-400.0,0.00019178,2]
[360702954,1746940896845,-615.25,0.00019178,2]
[360702955,1746940896867,-400.0,0.00019178,2]
[360702956,1746940896891,-400.0,0.00019178,2]
[360702957,1746940896915,-400.0,0.00019178,2]
[360702958,1746940896940,-400.0,0.00019178,2]
[360702959,1746940896962,-513.39757496,0.00019178,2]
[360702960,1746940896987,-400.0,0.00019178,2]
[360702961,1746940897009,-400.0,0.00019178,2]
[360702962,1746940897032,-400.0,0.00019178,2]
[360702963,1746940897054,-400.0,0.00019178,2]
[360702964,1746940897077,-400.0,0.00019178,2]
[360702965,1746940897102,-405.51,0.00019178,2]
[360702966,1746940897125,-400.0,0.00019178,2]
[360702967,1746940897148,-400.0,0.00019178,2]
[360702968,1746940897173,-400.0,0.00019178,2]
[360702969,1746940897195,-400.0,0.00019178,2]
[360702970,1746940897219,-400.0,0.00019178,2]
[360702971,1746940897240,-400.0,0.00019178,2]
[360702972,1746940897262,-400.0,0.00019178,2]
[360702973,1746940897283,-400.0,0.00019178,2]
[360702974,1746940897304,-400.0,0.00019178,2]
[360702975,1746940897325,-400.0,0.00019178,2]
[360702976,1746940897345,-400.0,0.00019178,2]
[360702977,1746940897367,-400.0,0.00019178,2]
[360702978,1746940897388,-400.0,0.00019178,2]
[360702979,1746940897410,-400.0,0.00019178,2]
[360702980,1746940897433,-400.0,0.00019178,2]
[360702981,1746940897454,-400.0,0.00019178,2]
[360702982,1746940897476,-400.0,0.00019178,2]
[360702983,1746940897498,-400.0,0.00019178,2]
[360702984,1746940897520,-400.0,0.00019178,2]
[360702985,1746940897544,-328.09,0.00019178,2]
[360702986,1746940897567,-400.0,0.00019178,2]
[360702987,1746940897589,-400.0,0.00019178,2]
[360702988,1746940897614,-400.0,0.00019178,2]
[360702989,1746940897639,-411.20799893,0.00019178,2]
[360702990,1746940897662,-162.174,0.00019178,2]
[360702991,1746940897683,-159.86,0.00019178,2]
[360702992,1746940904521,402.06199433,0.00019178,2]
[360702993,1746940909605,422.14975617,0.00019178,2]
[360702994,1746940925845,207.4,0.00019166,2]
[360702995,1746940928922,-6991.1848,0.00019191,2]
[360702996,1746940928944,-250.0,0.0001924,2]
[360702997,1746940928966,-531.7332,0.00019289,2]
[360702998,1746940928989,-300.0,0.00019306,2]
[360702999,1746940929013,-9131.28113272,0.00019307,2]
[360703000,1746940929039,-500.0,0.00019373,2]
[360703001,1746940929066,-9131.28113267,0.00019373,2]
[360703002,1746940929091,-162.28,0.00019378,2]
[360703003,1746940929114,-174.14,0.00019378,2]
[360703004,1746940929136,-409.00156204,0.00019387,2]
[360703005,1746940929158,-450.0,0.00019387,2]
[360703006,1746940929181,-400.0,0.00019387,2]
[360703007,1746940929205,-400.0,0.00019387,2]
[360703008,1746940929229,-200.0,0.00019387,2]
[360703009,1746940929254,-400.0,0.00019387,2]
[360703010,1746940929276,-402.24479279,0.00019387,2]
[360703011,1746940929298,-400.0,0.00019387,2]
[360703012,1746940929320,-400.0,0.00019387,2]
[360703013,1746940929343,-400.0,0.00019387,2]
[360703014,1746940929365,-401.96173866,0.00019387,2]
[360703015,1746940929388,-400.0,0.00019387,2]
[360703016,1746940929409,-402.46248106,0.00019387,2]
[360703017,1746940929433,-400.0,0.00019387,2]
[360703018,1746940929454,-404.17044289,0.00019387,2]
[360703019,1746940929476,-400.0,0.00019387,2]
[360703020,1746940929498,-535.12045187,0.00019387,2]
[360703021,1746940929522,-400.0,0.00019387,2]
[360703022,1746940929544,-400.0,0.00019387,2]
[360703023,1746940929566,-400.0,0.00019387,2]
[360703024,1746940929587,-400.0,0.00019387,2]
[360703025,1746940929609,-541.07971185,0.00019387,2]
[360703026,1746940929631,-399.47027958,0.00019387,2]
[360703027,1746940929653,-400.0,0.00019387,2]
[360703028,1746940929676,-400.0,0.00019387,2]
[360703029,1746940929698,-400.47490612,0.00019387,2]
[360703030,1746940929722,-400.0,0.00019387,2]
[360703031,1746940929744,-400.0,0.00019387,2]
[360703032,1746940929769,-400.0,0.00019387,2]
[360703033,1746940929792,-110.68402697,0.00019387,2]
[360703034,1746940967667,796.52,0.00016641,2]
[360703045,1746941128906,800.0,0.00030136,120]
[360703046,1746941241119,-175.5,0.00018455,2]
[360703047,1746941241141,-924.91085199,0.00018489,2]
[360703053,1746941331452,250.0,0.00017,2]
[360703079,1746941431816,-7517.85,0.00018419,2]
[360703080,1746941431827,-250.0,0.00018437,2]
[360703081,1746941431837,-200.0,0.00018454,2]
[360703082,1746941431848,-75.08914801,0.00018489,2]
[360703083,1746941431857,-1200.0,0.00018696,2]
[360703084,1746941431866,-500.0,0.000188,6]
[360703085,1746941431876,-1000.0,0.000189,6]
[360703086,1746941431885,-796.52,0.00018905,2]
[360703087,1746941431895,-150.0,0.00018986,7]
[360703088,1746941431905,-300.0,0.00018999,2]
[360703089,1746941431915,-1794.14855072,0.00019,2]
[360703090,1746941431925,-1794.14855052,0.00019,2]
[360703091,1746941431934,-1794.14855052,0.00019,2]
[360703092,1746941431943,-300.0,0.00019,2]
[360703093,1746941431953,-553.08271892,0.00019002,2]
[360703094,1746941431962,-1794.14855052,0.00019003,2]
[360703095,1746941431971,-1794.14855052,0.00019038,2]
[360703096,1746941431981,-1794.14855052,0.00019072,2]
[360703097,1746941431990,-1600.0,0.000191,6]
[360703098,1746941432000,-1794.14855052,0.00019107,2]
[360703099,1746941432009,-1794.14855052,0.00019141,2]
[360703100,1746941432019,-1794.14855052,0.00019176,2]
[360703101,1746941432028,-500.0,0.00019178,2]
[360703102,1746941432037,-500.0,0.00019178,2]
[360703103,1746941432047,-500.0,0.00019178,2]
[360703104,1746941432056,-500.0,0.00019178,2]
[360703105,1746941432066,-400.75783305,0.00019178,2]
[360703106,1746941432075,-653.64166073,0.00019188,2]
[360703107,1746941432085,-330.8623702,0.0001921,2]
[360703108,1746941432096,-1463.28618032,0.0001921,2]
[360703109,1746941432106,-1794.14855052,0.00019245,2]
[360703110,1746941432115,-1794.14855052,0.00019279,2]
[360703111,1746941432124,-169.41614612,0.00019288,2]
[360703112,1746941432134,-359.95573932,0.00019288,2]
[360703113,1746941432143,-7369.45812906,0.00019288,2]
[360703114,1746941432152,-1794.14855052,0.00019314,2]
[360703115,1746941432163,-1794.14855052,0.00019348,2]
[360703116,1746941432172,-359.95573925,0.00019356,2]
[360703117,1746941432181,-7369.45812902,0.00019356,2]
[360703118,1746941432190,-151.90373188,0.00019375,2]
[360703119,1746941432199,-498.55591997,0.00019375,2]
[360703120,1746941432208,-169.41614612,0.00019375,2]
[360703121,1746941432218,-207.4,0.00019376,2]
[360703122,1746941432229,-668.65185757,0.00019376,2]
[360703123,1746941432238,-261.21,0.00019377,2]
[360703124,1746941432251,-306.12296637,0.00019378,2]
[360703125,1746941432261,-1794.14855052,0.00019383,2]
[360703126,1746941432270,-400.0,0.00019386,2]
[360703127,1746941432460,-400.0,0.00019386,2]
[360703128,1746941432474,-400.0,0.00019386,2]
[360703129,1746941432483,-400.0,0.00019386,2]
[360703130,1746941432493,-400.0,0.00019386,2]
[360703131,1746941432502,-400.0,0.00019386,2]
[360703132,1746941432511,-400.0,0.00019386,2]
[360703133,1746941432520,-400.0,0.00019386,2]
[360703134,1746941432530,-401.24857569,0.00019386,2]
[360703135,1746941432539,-402.14958601,0.00019386,2]
[360703136,1746941432548,-400.0,0.00019386,2]
[360703137,1746941432557,-400.0,0.00019386,2]
[360703138,1746941432566,-400.0,0.00019386,2]
[360703139,1746941432575,-501.40781688,0.00019386,2]
[360703140,1746941432585,-400.0,0.00019386,2]
[360703141,1746941432594,-208.73621754,0.00019386,2]
[360703142,1746941432603,-400.0,0.00019386,2]
[360703143,1746941432612,-400.0,0.00019386,2]
[360703144,1746941432621,-400.0,0.00019386,2]
[360703145,1746941432630,-289.31597303,0.00019387,2]
[360703146,1746941432639,-400.0,0.00019387,2]
[360703147,1746941432648,-157.06418365,0.00019387,2]
[360703148,1746941432658,-292.40236906,0.00019387,2]
[360703149,1746941432667,-400.0,0.00019387,2]
[360703150,1746941432676,-400.0,0.00019387,2]
[360703151,1746941432685,-400.0,0.00019387,2]
[360703152,1746941432694,-186.46642866,0.00019387,2]
[360703153,1746941432703,-400.0,0.00019387,2]
[360703154,1746941432715,-400.0,0.00019387,2]
[360703155,1746941432725,-400.0,0.00019387,2]
[360703156,1746941432734,-400.0,0.00019387,2]
[360703157,1746941432743,-400.0,0.00019387,2]
[360703158,1746941432752,-400.0,0.00019387,2]
[360703159,1746941432762,-400.0,0.00019387,2]
[360703160,1746941432772,-400.0,0.00019387,2]
[360703161,1746941432782,-405.35246688,0.00019387,2]
[360703162,1746941432791,-400.0,0.00019387,2]
[360703163,1746941432801,-549.97645748,0.00019387,2]
[360703164,1746941432810,-401.37417016,0.00019387,2]
[360703165,1746941432819,-403.21895261,0.00019387,2]
[360703166,1746941432829,-400.0,0.00019387,2]
[360703167,1746941432838,-407.01330325,0.00019387,2]
[360703168,1746941432848,-400.0,0.00019387,2]
[360703169,1746941432858,-400.0,0.00019387,2]
[360703170,1746941432867,-400.0,0.00019387,2]
[360703171,1746941432876,-400.0,0.00019387,2]
[360703172,1746941432886,-400.0,0.00019387,2]
[360703173,1746941432895,-400.0,0.00019387,2]
[360703174,1746941432905,-400.0,0.00019387,2]
[360703175,1746941432915,-400.0,0.00019387,2]
[360703176,1746941432924,-401.47773773,0.00019387,2]
[360703177,1746941432934,-400.0,0.00019387,2]
[360703178,1746941432944,-400.0,0.00019387,2]
[360703179,1746941432953,-400.0,0.00019387,2]
[360703180,1746941432962,-400.0,0.00019387,2]
[360703181,1746941432971,-400.0,0.00019387,2]
[360703182,1746941432981,-400.0,0.00019387,2]
[360703183,1746941432993,-515.2051545,0.00019387,2]
[360703184,1746941433003,-41.68514763,0.00019387,2]
[360703186,1746941437805,-266.75087034,0.00019178,2]
[360703187,1746941437815,-1603.63362806,0.000192,7]
[360703196,1746941441555,-166.36577874,0.000192,7]
[360703197,1746941441610,-330.0005932,0.000192,7]
[360703198,1746941441620,-244.05975669,0.000193,7]
[360703199,1746941441642,-2355.94024331,0.000193,7]
[360703200,1746941441653,-234.32077702,0.000193,2]
[360703201,1746941441663,-348.98914398,0.00019385,2]
[360703202,1746941441672,-400.0,0.00019386,2]
[360703203,1746941441681,-400.0,0.00019386,2]
[360703204,1746941441690,-402.70138768,0.00019386,2]
[360703205,1746941441700,-400.0,0.00019386,2]
[360703206,1746941441710,-400.0,0.00019386,2]
[360703207,1746941441720,-400.0,0.00019386,2]
[360703208,1746941441730,-400.0,0.00019386,2]
[360703209,1746941441740,-545.15963195,0.00019386,2]
[360703210,1746941441750,-400.0,0.00019386,2]
[360703211,1746941441760,-400.0,0.00019386,2]
[360703212,1746941441769,-400.0,0.00019386,2]
[360703213,1746941441778,-400.0,0.00019386,2]
[360703214,1746941441788,-536.21379654,0.00019386,2]
[360703215,1746941441798,-358.31485237,0.00019387,2]
[360703216,1746941441807,-400.0,0.00019387,2]
[360703217,1746941441816,-400.0,0.00019387,2]
[360703218,1746941441826,-400.0,0.00019387,2]
[360703219,1746941441836,-500.0,0.00019387,2]
[360703220,1746941441846,-400.0,0.00019387,2]
[360703221,1746941441855,-400.0,0.00019387,2]
[360703222,1746941441865,-402.78628351,0.00019387,2]
[360703223,1746941441874,-400.0,0.00019387,2]
[360703224,1746941441883,-513.08505889,0.00019387,2]
[360703225,1746941441893,-400.0,0.00019387,2]
[360703226,1746941441902,-400.0,0.00019387,2]
[360703227,1746941441912,-450.0,0.00019387,2]
[360703228,1746941441922,-400.0,0.00019387,2]
[360703229,1746941441934,-400.0,0.00019387,2]
[360703230,1746941441944,-400.0,0.00019387,2]
[360703231,1746941441954,-396.19400945,0.00019387,2]
[360703232,1746941441964,-400.0,0.00019387,2]
[360703233,1746941441973,-400.0,0.00019387,2]
[360703234,1746941441983,-400.0,0.00019387,2]
[360703235,1746941441993,-400.0,0.00019387,2]
[360703236,1746941442002,-400.0,0.00019387,2]
[360703237,1746941442013,-400.0,0.00019387,2]
[360703238,1746941442024,-400.0,0.00019387,2]
[360703239,1746941442034,-400.0,0.00019387,2]
[360703240,1746941442043,-400.0,0.00019387,2]
[360703241,1746941442054,-400.0,0.00019387,2]
[360703242,1746941442072,-400.0,0.00019387,2]
[360703243,1746941442082,-400.0,0.00019387,2]
[360703244,1746941442091,-400.0,0.00019387,2]
[360703245,1746941442101,-400.0,0.00019387,2]
[360703246,1746941442111,-400.0,0.00019387,2]
[360703247,1746941442122,-464.51938512,0.00019387,2]
[360703248,1746941442132,-200.0,0.00019387,2]
[360703249,1746941442144,-400.0,0.00019387,2]
[360703250,1746941442154,-500.0,0.00019387,2]
[360703251,1746941442163,-296.55509389,0.00019387,2]
[360703252,1746941442173,-311.02614868,0.00019387,2]
[360703253,1746941442182,-400.0,0.00019387,2]
[360703254,1746941442192,-400.0,0.00019387,2]
[360703255,1746941442201,-400.0,0.00019387,2]
[360703256,1746941442210,-263.32660264,0.00019387,2]
[360703257,1746941442219,-400.0,0.00019387,2]
[360703258,1746941442229,-400.0,0.00019387,2]
[360703259,1746941442239,-157.602147,0.00019387,2]
[360703260,1746941442253,-504.07158764,0.00019387,2]
[360703261,1746941442263,-175.54621166,0.00019387,2]
[360703262,1746941442272,-607.94333,0.00019387,2]
[360703263,1746941442281,-400.0,0.00019387,2]
[360703264,1746941442292,-400.0,0.00019387,2]
[360703265,1746941442301,-400.0,0.00019387,2]
[360703266,1746941442310,-400.0,0.00019387,2]
[360703267,1746941442323,-56148.221431,0.00019387,2]
[360703268,1746941442333,-400.0,0.00019387,2]
[360703269,1746941442342,-400.0,0.00019387,2]
[360703270,1746941442351,-434.23455669,0.00019387,2]
[360703271,1746941442360,-400.0,0.00019387,2]
[360703272,1746941442370,-405.83,0.00019387,2]
[360703273,1746941442379,-23364.325131,0.00019387,2]
[360703274,1746941442388,-400.0,0.00019387,2]
[360703275,1746941442397,-400.0,0.00019387,2]
[360703276,1746941442407,-400.0,0.00019387,2]
[360703277,1746941442416,-403.63954104,0.00019387,2]
[360703278,1746941442426,-400.0,0.00019387,2]
[360703279,1746941442435,-400.0,0.00019387,2]
[360703280,1746941442445,-531.34531188,0.00019387,2]
[360703281,1746941442454,-400.0,0.00019387,2]
[360703282,1746941442464,-400.0,0.00019387,2]
[360703283,1746941442473,-400.0,0.00019387,2]
[360703284,1746941442482,-400.0,0.00019387,2]
[360703285,1746941442492,-400.0,0.00019387,2]
[360703286,1746941442501,-401.59,0.00019387,2]
[360703287,1746941442510,-400.0,0.00019387,2]
[360703288,1746941442519,-314.24256,0.00019387,2]
[360703289,1746941442528,-633.54,0.00019387,2]
[360703290,1746941442538,-400.0,0.00019387,2]
[360703291,1746941442547,-500.36002603,0.00019387,2]
[360703292,1746941442556,-274.86474267,0.00019387,2]
[360703293,1746941442565,-400.0,0.00019387,2]
[360703294,1746941442575,-400.0,0.00019387,2]
[360703295,1746941442584,-1157.71,0.00019387,2]
[360703296,1746941442595,-400.0,0.00019387,2]
[360703297,1746941442604,-400.0,0.00019387,2]
[360703298,1746941442613,-400.0,0.00019387,2]
[360703299,1746941442622,-500.0,0.00019387,2]
[360703300,1746941442631,-400.0,0.00019387,2]
[360703301,1746941442641,-400.0,0.00019387,2]
[360703302,1746941442650,-400.0,0.00019387,2]
[360703303,1746941442659,-477.54,0.00019387,2]
[360703304,1746941442670,-400.0,0.00019387,2]
[360703305,1746941442679,-400.0,0.00019387,2]
[360703306,1746941442689,-509.55,0.00019387,2]
[360703307,1746941442698,-400.0,0.00019387,2]
[360703308,1746941442708,-400.0,0.00019387,2]
[360703309,1746941442717,-502.95,0.00019387,2]
[360703310,1746941442727,-400.0,0.00019387,2]
[360703311,1746941442736,-529.88018287,0.00019387,2]
[360703312,1746941442746,-400.0,0.00019387,2]
[360703313,1746941442755,-564.22,0.00019387,2]
[360703314,1746941442765,-400.0,0.00019387,2]
[360703315,1746941442774,-564.22,0.00019387,2]
[360703316,1746941442784,-400.0,0.00019387,2]
[360703317,1746941442793,-400.0,0.00019387,2]
[360703318,1746941442803,-400.0,0.00019387,2]
[360703319,1746941442812,-422.22,0.00019387,2]
[360703320,1746941442822,-400.0,0.00019387,2]
[360703321,1746941442831,-400.0,0.00019387,2]
[360703322,1746941442840,-400.0,0.00019387,2]
[360703323,1746941442850,-400.0,0.00019387,2]
[360703324,1746941442859,-400.0,0.00019387,2]
[360703325,1746941442868,-400.0,0.00019387,2]
[360703326,1746941442878,-400.0,0.00019387,2]
[360703327,1746941442888,-898.11,0.00019387,2]
[360703328,1746941442897,-898.11,0.00019387,2]
[360703329,1746941442907,-659.69,0.00019387,2]
[360703330,1746941442917,-659.69,0.00019387,2]
[360703331,1746941442927,-400.0,0.00019387,2]
[360703332,1746941442936,-400.0,0.00019387,2]
[360703333,1746941442946,-400.0,0.00019387,2]
[360703334,1746941442956,-400.0,0.00019387,2]
[360703335,1746941442965,-400.0,0.00019387,2]
[360703336,1746941442975,-971.84,0.00019387,2]
[360703337,1746941442984,-971.84,0.00019387,2]
[360703338,1746941442994,-400.0,0.00019387,2]
[360703339,1746941443004,-400.0,0.00019387,2]
[360703340,1746941443013,-400.0,0.00019387,2]
[360703341,1746941443023,-400.0,0.00019387,2]
[360703342,1746941443032,-400.0,0.00019387,2]
[360703343,1746941443041,-400.0,0.00019387,2]
[360703344,1746941443051,-400.0,0.00019387,2]
[360703345,1746941443060,-400.0,0.00019387,2]
[360703346,1746941443070,-652.0,0.00019387,2]
[360703347,1746941443079,-652.0,0.00019387,2]
[360703348,1746941443088,-400.0,0.00019387,2]
[360703349,1746941443097,-400.0,0.00019387,2]
[360703350,1746941443106,-400.0,0.00019387,2]
[360703351,1746941443115,-400.0,0.00019387,2]
[360703352,1746941443124,-400.0,0.00019387,2]
[360703353,1746941443134,-400.0,0.00019387,2]
[360703354,1746941443144,-400.0,0.00019387,2]